[Event "Baku Open 2024"]
[Site "Baku"]
[Date "2024.07.02"]
[Round "4.19"]
[White "Dolgun, Can"]
[Black "Agmanov, Zhandos"]
[Result "0-1"]
[ECO "B66"]
[WhiteElo "2264"]
[BlackElo "2464"]
[Annotator "TA"]
[PlyCount "98"]
[EventDate "2024.06.29"]
[EventType "swiss"]
[EventCountry "AZE"]
[SourceTitle "playchess.com"]
[Source "ChessBase"]
[SourceQuality "1"]
[TimeControl "5400+30"]

{[%evp 18,98,0,0,0,-50,-48,-61,-47,-56,-27,-31,-15,-27,-20,-13,-25,-144,-115,-206,-190,-186,-194,-208,-212,-345,-284,-288,-303,-320,-327,-454,-345,-381,-352,-345,-304,-286,-298,-295,-296,-393,-393,-385,-424,-427,-419,-393,-473,-471,-513,-510,-482,-408,-402,-343,-338,-353,-345,-920,-920,-837,-811,-743,-626,-1608,-1674,-1157,-1143,-5010,-5406,-4134,-2735,-29977,-29978,-29978,-29979,-29979,-29980,-29980,-29981,-29981,-29982]} 1. e4 {[%emt 0:00:01]} c5 {[%emt 0:00:44]} 2. Nf3 {[%emt 0:00:03]} d6 {[%emt 0:00:07]} 3. d4 {[%emt 0:00:04]} cxd4 {[%emt 0:00:05]} 4. Nxd4 {[%emt 0:00:03]} Nf6 {[%emt 0:00:07]} 5. Nc3 {[%emt 0:00:04]} Nc6 {[%emt 0:00:12]} 6. Bg5 {[%emt 0:00:24]} e6 {[%emt 0:00:16]} 7. Qd2 {[%emt 0:00:32]} a6 {[%emt 0:00:35]} 8. f4 {[%emt 0:00:47]} h6 {[%emt 0:05:47]} 9. Bxf6 {[%emt 0:01:28]} Qxf6 {[%emt 0:00:07]} 10. Nf3 {[%emt 0:01:31]} g5 {[%emt 0:07:35]} 11. fxg5 {[%emt 0:05:19]} ({White should play} 11. g3 $11) 11... hxg5 $15 {[%emt 0:00:57]} 12. Qxg5 {[%emt 0:00:50]} Qxg5 {[%emt 0:00:22] Black is slightly better.} 13. Nxg5 {[%emt 0:00:01]} Bh6 {[%emt 0:15:44]} 14. Nf3 {[%emt 0:00:26]} b5 {[%emt 0:01:01][%mdl 1024] Black has compensation.} 15. Bd3 {[%emt 0:02:53]} Bb7 {[%emt 0:00:37]} 16. g4 {[%emt 0:01:27]} Ke7 $36 {[%emt 0:11:58][%mdl 2048] Black has good play.} 17. h4 {[%emt 0:04:18] Black converts the advantage convincingly.} (17. Kf2 $11) 17... Rag8 $17 {[%emt 0:01:51]} 18. Rg1 {[%emt 0:48:04]} (18. g5 $2 Bxg5 19. h5 (19. Nxg5 $2 Rxg5 20. Kd2 Rgh5 $19) 19... Bf6 $19) (18. Ke2 $17 {keeps fighting.}) 18... Be3 $19 {[%emt 0:01:25]} 19. Rg3 {[%emt 0:00:03]} Nd4 {[%emt 0:13:31]} 20. a4 {[%emt 0:06:07] [#]} b4 $1 {[%emt 0:02:26]} 21. Na2 {[%emt 0:03:49] White is weak on the dark squares} (21. Ne2 $142 Nxf3+ 22. Rxf3 Rxh4 23. Rxe3 Rh1+ (23... Rhxg4 $2 24. a5 $18) 24. Ng1 Rxg1+ 25. Bf1) 21... Nxf3+ {[%emt 0:08:05]} 22. Rxf3 {[%emt 0:00:01]} Bc5 {[%emt 0:00:07]} 23. O-O-O {[%emt 0:04:16]} Rxg4 {[%emt 0:08:35]} (23... Rxh4 24. Rdf1 Rg7 (24... Rgxg4 $2 25. Rxf7+ Ke8 26. Rxb7 $18) 25. g5) 24. c3 {[%emt 0:03:36]} bxc3 {[%emt 0:02:38]} (24... Bxe4 25. Bxe4 Rxe4 26. cxb4 Bxb4 27. Nxb4 Rxb4 28. b3 $19) (24... Rgxh4 $2 25. cxb4 Bd4 (25... Bxe4 26. Bxe4 Bxb4 27. Nxb4 $18) 26. Nc3 $19 (26. Bxa6 $2 Bxe4 $19)) 25. b4 {[%emt 0:00:47]} Ba7 {[%emt 0:02:33]} (25... Bxe4 26. Bxe4 Bxb4 27. Nxb4 $11 (27. Nxc3 $2 Rc8 $19)) 26. Bc2 {[%emt 0:03:13]} Rhxh4 {[%emt 0:06:36]} (26... Rgxh4 27. Rdf1 Rf8 (27... Bxe4 28. Rxf7+ Ke8 29. Rxa7 $16) (27... f5 $2 28. Rxc3 Rh1 29. Rd1 $19) 28. Rxc3) 27. Rxc3 {[%emt 0:00:46]} Bb8 {[%emt 0:00:21][%cal Og4g2] Against Rc7+} ({Stronger than} 27... Bxe4 28. Rc7+ Kf6 29. Rxa7 Bxc2 30. Kxc2 Rg2+ 31. Kb1 $14) 28. b5 {[%emt 0:03:59]} a5 {[%emt 0:00:25][%cal Og4g2]} (28... Bxe4 29. Nb4 $17) 29. b6 {[%emt 0:02:08]} Rh2 {[%emt 0:02:23]} 30. Re1 {[%emt 0:04:33]} Rgg2 {[%emt 0:01:48] And now ...d5 would win.} 31. Kb1 {[%emt 0:00:07]} d5 {[%emt 0:01:39]} 32. exd5 {[%emt 0:00:29]} Bxd5 {[%emt 0:00:03]} 33. Nc1 {[%emt 0:00:15]} Bg3 {[%emt 0:02:09]} 34. Rd1 {[%emt 0:01:06]} Be5 {[%emt 0:01:48]} 35. Rc5 {[%emt 0:02:19]} Bd6 {[%emt 0:01:02] A strong pair of Bishops.} 36. Rc3 {[%emt 0:00:14]} Rg8 {[%emt 0:00:54]} 37. Nb3 {[%emt 0:02:03]} Rb8 {[%emt 0:00:20]} 38. Nxa5 $2 {[%emt 0:00:40]} (38. Rxd5 exd5 39. Rc6) 38... Rxb6+ {[%emt 0:00:05]} 39. Nb3 {[%emt 0:00:08]} Be5 {[%emt 0:00:39]} 40. Rxd5 {[%emt 0:00:51]} Bxc3 {[%emt 0:00:33]} 41. Rd3 {[%emt 0:00:42] [#]} Rxb3+ {[%emt 0:00:24]} 42. Bxb3 {[%emt 0:00:02][%mdl 4096] Endgame. KRB-KRB} Rb2+ {[%emt 0:00:07]} 43. Kc1 {[%emt 0:00:03]} Rxb3 {[%emt 0:00:04] KRB-KR} 44. Kc2 {[%emt 0:00:03]} Ra3 {[%emt 0:00:03]} 45. Rxc3 {[%emt 0:00:06]} Rxc3+ {[%emt 0:00:19] Black mates.} 46. Kxc3 {[%emt 0:00:04]} Kd6 {[%emt 0:00:03]} 47. Kd4 {[%emt 0:00:04]} f5 {[%emt 0:00:10]} 48. a5 {[%emt 0:00:03]} e5+ {[%emt 0:00:15]} 49. Kc4 {[%emt 0:00:03]} Kc6 {[%emt 0:05:25] Weighted Error Value: White=0.73/Black=0.14 (very precise) .  Mistake:       	White=5     	---        Inaccurate:     	White=2     	Black=1      OK:         	White=13    	Black=10     Best:        	---       	Black=3      Strong:       	---       	Black=1} 0-1

[Event "Baku Open 2024"]
[Site "Baku"]
[Date "2024.07.02"]
[Round "4.20"]
[White "Jubin Jimmy"]
[Black "Serikbay, Assel"]
[Result "1-0"]
[ECO "A14"]
[WhiteElo "2452"]
[BlackElo "2217"]
[Annotator "TA"]
[PlyCount "51"]
[EventDate "2024.06.29"]
[EventType "swiss"]
[EventCountry "AZE"]
[SourceTitle "playchess.com"]
[Source "ChessBase"]
[SourceQuality "1"]
[TimeControl "5400+30"]

{[%evp 12,51,10,24,14,12,10,0,73,37,118,122,153,145,177,188,155,149,222,213,360,394,350,393,353,377,383,374,379,393,441,410,570,557,720,792,848,891,1484,1246,1237,803]} 1. c4 {[%emt 0:00:33]} Nf6 {[%emt 0:00:45]} 2. g3 {[%emt 0:00:16]} e6 {[%emt 0:00:41]} 3. Bg2 {[%emt 0:00:33]} d5 {[%emt 0:00:15]} 4. Nf3 {[%emt 0:00:11][%cal Bg1f3,Bf3e5,Be5d3][%mdl 32]} Be7 {[%emt 0:00:22]} 5. O-O {[%emt 0:01:15]} O-O {[%emt 0:00:18]} 6. b3 {[%emt 0:02:35]} d4 {[%emt 0:05:29]} 7. e3 {[%emt 0:02:57]} c5 {[%emt 0:00:08]} 8. Ne5 {[%emt 0:01:11] Dodges Nc6} Qc7 {[%emt 0:00:42]} 9. f4 {[%emt 0:01:37]} Bd6 {[%emt 0:22:07]} (9... Nc6 $11 {keeps the balance.}) 10. Nd3 {[%emt 0:08:17] White is more active.} dxe3 {[%emt 0:10:32]} (10... Bd7 $14) 11. dxe3 $16 {[%emt 0:00:54]} e5 {[%emt 0:09:48]} 12. Bb2 {[%emt 0:10:23]} Ng4 {[%emt 0:09:04]} 13. Qd2 {[%emt 0:10:15]} exf4 {[%emt 0:05:26]} 14. gxf4 {[%emt 0:03:47]} f5 {[%emt 0:06:29]} (14... Nc6 $16 {might work better.} 15. Nc3 Qd8) 15. Nc3 $18 {[%emt 0:04:39]} Rd8 {[%emt 0:02:03]} (15... Nc6 {was necessary.} 16. Nf2 Nxf2 17. Rxf2 (17. Qxf2 Be6 $18) 17... Qe7) 16. Nd5 {[%emt 0:08:47]} Qf7 {[%emt 0:00:24]} 17. h3 {[%emt 0:06:13]} Nh6 {[%emt 0:00:14]} 18. Rf3 {[%emt 0:04:20]} Nc6 {[%emt 0:04:29]} 19. Rg3 {[%emt 0:04:03]} Bf8 {[%emt 0:00:11]} 20. Qc3 {[%emt 0:02:38]} Kh8 {[%emt 0:04:28]} 21. Kh2 {[%emt 0:03:14]} Be6 {[%emt 0:05:53] [#]} 22. Nxc5 $1 {[%emt 0:03:27][%mdl 512] White is clearly winning.} Ng4+ {[%emt 0:06:51]} (22... Bc8 23. Rg1) 23. hxg4 {[%emt 0:00:11][%cal Bh3g4,Bg4f5][%mdl 32]} Bxc5 {[%emt 0:00:11]} 24. gxf5 {[%emt 0:00:55]} Bxd5 {[%emt 0:00:04]} 25. Qxg7+ {[%emt 0:00:31]} Qxg7 {[%emt 0:00:09]} 26. Bxg7+ {[%emt 0:00:07] Weighted Error Value: White=0.03 (flawless) /Black=0.48.  Mistake:       	---       	Black=4      Inaccurate:     	White=1     	Black=1      OK:         	White=9     	Black=4      Best:        	White=1     	---} 1-0

[Event "Baku Open 2024"]
[Site "Baku"]
[Date "2024.07.02"]
[Round "4.21"]
[White "Salimova, Nurgyul"]
[Black "Ahmadov, Fariz"]
[Result "1-0"]
[ECO "D08"]
[WhiteElo "2436"]
[BlackElo "2178"]
[Annotator "TA"]
[PlyCount "61"]
[EventDate "2024.06.29"]
[EventType "swiss"]
[EventCountry "AZE"]
[SourceTitle "playchess.com"]
[Source "ChessBase"]
[SourceQuality "1"]
[TimeControl "5400+30"]

{[%evp 9,61,63,70,64,83,61,63,54,50,35,60,29,43,79,82,70,109,110,115,113,132,96,127,118,157,123,202,191,182,156,282,214,316,177,343,334,331,332,633,472,437,462,720,713,1014,996,1103,1094,1243,1039,1170,960,913,737]} 1. d4 {[%emt 0:00:04]} d5 {[%emt 0:00:12]} 2. c4 {[%emt 0:00:31]} e5 {[%emt 0:00:12]} 3. dxe5 {[%emt 0:00:52]} d4 {[%emt 0:00:15]} 4. Nf3 {[%emt 0:02:35]} Nc6 {[%emt 0:00:06]} 5. a3 {[%emt 0:00:31]} a5 {[%emt 0:00:16][%cal Ba7a5,Ba5a4][%mdl 32]} 6. Nbd2 {[%emt 0:12:10][%cal Bb1d2,Bd2b3,Bb3c1,Bc1d3][%mdl 32]} Nge7 {[%emt 0:01:38]} 7. Nb3 {[%emt 0:03:56]} Nf5 {[%emt 0:00:37]} 8. Bf4 {[%emt 0:01:29] White is slightly better.} a4 {[%emt 0:02:56]} 9. Nc1 {[%emt 0:03:15]} Be6 {[%emt 0:01:24]} 10. Ng5 {[%emt 0:06:12]} Bxc4 {[%emt 0:04:11]} 11. e4 {[%emt 0:05:30][%csl LRc4,LRf5]} Bxf1 {[%emt 0:00:36] White now steadily converts the win.} 12. Kxf1 {[%emt 0:01:13]} Nh6 {[%emt 0:01:27][%cal Oc6e5]} 13. Nd3 {[%emt 0:03:05]} Qd7 {[%emt 0:01:50]} 14. Rc1 {[%emt 0:04:10]} Nd8 {[%emt 0:03:38]} 15. Kg1 {[%emt 0:03:27] White is much more active.} c6 {[%emt 0:06:05]} 16. h4 {[%emt 0:04:18]} Ne6 {[%emt 0:04:03]} 17. Rh3 {[%emt 0:01:53]} Ng8 {[%emt 0:08:21]} (17... Nxf4 $16 {was called for.} 18. Nxf4 Be7) 18. Nxe6 $18 {[%emt 0:02:49]} Qxe6 {[%emt 0:01:13]} 19. Bh2 {[%emt 0:01:38] Threatens to win with Nf4.} Qb3 {[%emt 0:03:43]} (19... Nh6 $16 {keeps fighting.} 20. Nf4 Qc8) 20. Qd2 {[%emt 0:08:42]} Rd8 {[%emt 0:04:07]} (20... Nh6 $142 21. Nc5 Qb5) 21. f4 {[%emt 0:03:07]} (21. Nc5 $142 Qb6 22. b4 (22. Nxa4 Qb5 $16)) 21... h5 $2 {[%emt 0:04:04] [#]} (21... Nh6 {might work better.} 22. f5 Ng4) 22. f5 {[%emt 0:00:35][%cal Bf4f5,Bf5f6][%mdl 32]} Nh6 {[%emt 0:00:44]} 23. e6 {[%emt 0:01:12]} Qb5 $2 {[%emt 0:05:31]} (23... fxe6 24. Bc7 (24. Nc5 Qb6 $18) 24... Rd7) 24. exf7+ {[%emt 0:02:21] White is clearly winning.} Nxf7 {[%emt 0:00:21]} 25. e5 {[%emt 0:00:24]} Be7 {[%emt 0:02:05]} (25... Nh6 $142 26. Rf3 Ng4) 26. Re1 {[%emt 0:06:56]} Nh6 {[%emt 0:05:18]} 27. f6 {[%emt 0:00:26]} Bf8 {[%emt 0:00:09]} 28. Qg5 {[%emt 0:03:48]} Nf7 {[%emt 0:00:29]} 29. Qf5 {[%emt 0:00:17] [#] Intending Qe6+ and mate.} Rd7 {[%emt 0:02:06]} 30. Rf3 {[%emt 0:00:50] aiming for Qg6.} gxf6 {[%emt 0:02:44]} 31. e6 {[%emt 0:00:54] Weighted Error Value: White=0.29 (precise) /Black=0.60.  Mistake:       	White=1     	Black=6      Inaccurate:     	White=1     	Black=4      OK:         	White=7     	Black=6      Best:        	White=2     	Black=1} 1-0

[Event "Baku Open 2024"]
[Site "Baku"]
[Date "2024.07.02"]
[Round "4.22"]
[White "Suyarov, Mukhammadzokhid"]
[Black "Ajay Santhosh Parvathareddy"]
[Result "1-0"]
[ECO "B51"]
[WhiteElo "2430"]
[BlackElo "2163"]
[Annotator "TA"]
[PlyCount "137"]
[EventDate "2024.06.29"]
[EventType "swiss"]
[EventCountry "AZE"]
[SourceTitle "playchess.com"]
[Source "ChessBase"]
[SourceQuality "1"]
[TimeControl "5400+30"]

{[%evp 12,137,19,18,18,17,22,25,99,73,78,67,74,66,66,65,73,66,54,73,60,0,18,0,83,4,0,14,8,4,8,-19,0,0,-8,-20,-23,-15,-19,-43,0,-13,40,50,63,-112,0,-499,0,0,0,-162,-158,-174,181,186,179,182,190,189,199,177,202,172,189,195,170,193,185,189,199,191,212,212,212,212,214,214,202,226,218,218,274,262,400,400,529,528,510,525,512,256,268,275,282,272,283,301,298,290,375,392,431,406,400,392,383,382,383,384,392,385,479,507,506,501,560,545,608,601,29982,29983,29983,29984,29984,29985,29987,29988]} 1. e4 {[%emt 0:00:04]} c5 {[%emt 0:00:03]} 2. Nf3 {[%emt 0:00:21]} d6 {[%emt 0:00:03]} 3. Bb5+ {[%emt 0:00:21]} Nd7 {[%emt 0:00:04]} 4. c3 {[%emt 0:00:15]} Ngf6 {[%emt 0:00:05]} 5. Qe2 {[%emt 0:00:22]} a6 {[%emt 0:00:04]} 6. Ba4 {[%emt 0:00:22]} b5 {[%emt 0:00:06]} 7. Bc2 {[%emt 0:00:24]} Bb7 {[%emt 0:00:04]} 8. O-O {[%emt 0:00:19]} Qc7 {[%emt 0:00:35]} 9. d4 {[%emt 0:00:31]} Rc8 {[%emt 0:11:30]} (9... e6 $11) 10. d5 {[%emt 0:05:42]} g6 {[%emt 0:01:04]} 11. a4 {[%emt 0:00:46]} b4 {[%emt 0:00:16]} 12. a5 {[%emt 0:02:14]} Bg7 {[%emt 0:00:18]} 13. Nbd2 {[%emt 0:01:36]} O-O {[%emt 0:03:06]} 14. Nc4 {[%emt 0:03:02]} Rfe8 {[%emt 0:06:18]} 15. Rd1 {[%emt 0:04:50]} h6 {[%emt 0:00:21]} 16. Bb3 {[%emt 0:15:30]} (16. Qd3 $14) 16... bxc3 {[%emt 0:03:07]} (16... e6 $5 17. Nxd6 exd5 (17... Qxd6 $2 18. dxe6 Qc7 19. exf7+ Kh7 20. fxe8=N $18) 18. Nxe8 Rxe8 $15) 17. bxc3 {[%emt 0:01:31]} Rb8 {[%emt 0:00:06]} (17... e6 $11 18. Nxd6 exd5 (18... Qxd6 $2 19. dxe6 $18) 19. Nxc8 (19. Nxe8 Rxe8 20. e5 Ne4 $11) 19... Qxc8) 18. Ra3 {[%emt 0:03:50] White is more active.} (18. Rb1 $1 $16) 18... e6 $11 {[%emt 0:12:02][%cal Re6d5]} 19. Nxd6 {[%emt 0:09:03] Hoping for dxe6.} exd5 {[%emt 0:00:17]} (19... Qxd6 $2 20. dxe6 $18) 20. Nxe8 {[%emt 0:00:19]} Rxe8 {[%emt 0:00:05]} 21. c4 {[%emt 0:00:19]} (21. Bxd5 $2 Nxd5 (21... Nxe4 $2 22. Bf4 $18) 22. c4 Nb4 $19 (22... Nc3 $2 23. Rxc3 Bxc3 24. Qd3 $19)) 21... dxe4 {[%emt 0:09:38]} 22. Ne1 {[%emt 0:01:52]} Ne5 $36 {[%emt 0:01:06][%cal Oe5f3][%mdl 2048] White is under pressure.} 23. Bf4 {[%emt 0:02:16]} Nh5 {[%emt 0:01:15][%mdl 1024] Black has compensation. A dynamic duo of knights.} 24. Be3 {[%emt 0:09:36]} f5 {[%emt 0:03:12]} 25. g3 {[%emt 0:01:32]} Rf8 {[%emt 0:06:31]} 26. Qd2 {[%emt 0:01:41][%cal Od2d6] [#]} f4 {[%emt 0:00:10]} 27. gxf4 $14 {[%emt 0:00:26]} Nd3 {[%emt 0:00:12]} 28. Ng2 {[%emt 0:04:34] [#]} (28. Nxd3 $14 {is the one way to stay ahead.} exd3 29. Qxd3 Nxf4 30. Qd7 (30. Bxf4 $2 Qxf4 31. Qe3 Qg4+ 32. Qg3 Qe4 $19)) 28... g5 {[%emt 0:13:33]} 29. fxg5 $2 {[%emt 0:05:03][%mdl 8192]} (29. Bc2 $1 $11 {and White has nothing to worry.} gxf4 (29... Ndxf4 $2 30. Qd7 $18) 30. Rxd3 exd3 31. Qxd3 fxe3 32. Qh7+ Kf7 33. Qg6+ Kg8 (33... Ke7 34. Nxe3 Bf3 35. Be4 $11) 34. Qh7+ Kf7 35. Qg6+ Kg8 (35... Ke7 36. Nxe3 Bf3 37. Be4 $11) 36. Qh7+) 29... Rf3 $2 {[%emt 0:00:08]} (29... Qd7 $19 30. h4 (30. gxh6 $2 Be5 $19) 30... Qh3) 30. Bc2 $11 {[%emt 0:04:38]} (30. gxh6 Rh3 $17) (30. Ba4 $5 Rh3 $8 31. Nf4 $11) 30... Rh3 {[%emt 0:03:45]} 31. Bf4 {[%emt 0:02:13]} Nhxf4 $19 {[%emt 0:08:12]} 32. Nxf4 {[%emt 0:00:23]} Nxf4 {[%emt 0:00:05][%mdl 8192]} (32... Qxf4 $2 33. Qxf4 Nxf4 34. Rxh3 (34. Rd8+ Bf8 $18) 34... Nxh3+ 35. Kf1 Nxg5 (35... hxg5 $2 36. Rd7 $18) 36. Rd7 $18) (32... Qd7 $19 {and all is fine. ( -> ...Qg4+)} 33. Rxd3 (33. Bxd3 $2 Qg4+ 34. Kf1 Rxh2 $19) 33... exd3 34. Bxd3 Bd4) 33. Qd8+ $18 {[%emt 0:00:33] White stays focused until the end.} Qxd8 {[%emt 0:00:05]} 34. Rxd8+ {[%emt 0:00:12]} Bf8 {[%emt 0:00:04]} 35. Rxh3 {[%emt 0:03:23]} Nxh3+ {[%emt 0:00:08]} 36. Kf1 $1 {[%emt 0:00:22]} Nxg5 {[%emt 0:00:14]} (36... hxg5 37. Ba4 e3 (37... Nf4 $2 38. Rb8 $18) 38. fxe3) 37. Rb8 $1 {[%emt 0:00:30]} Bc6 {[%emt 0:00:08]} 38. Rb6 $1 {[%emt 0:00:33][%csl LRa6,LRc6]} Be8 {[%emt 0:00:03]} 39. Kg2 {[%emt 0:01:47]} Bf7 {[%emt 0:06:28]} 40. Bb3 {[%emt 0:04:24]} Nf3 {[%emt 0:05:27]} 41. Rxa6 {[%emt 0:01:42]} Nd4 {[%emt 0:00:23]} 42. Ba2 {[%emt 0:03:00]} Be8 {[%emt 0:00:51]} 43. Rb6 {[%emt 0:01:14] a6 would now be deadly.} Bc6 {[%emt 0:00:03] [#] White must now prevent ...e3+.} 44. Kf1 $1 {[%emt 0:00:18] Strongly threatening a6.} Bd6 {[%emt 0:00:11][%cal Od6c7]} 45. a6 {[%emt 0:00:47]} Bc7 {[%emt 0:00:03] [#]} 46. Rb2 {[%emt 0:00:10]} Ba8 {[%emt 0:00:04]} 47. Bb1 {[%emt 0:00:44]} Bxh2 {[%emt 0:03:56]} (47... Bc6 $142 48. a7 Kf7) 48. a7 {[%emt 0:01:28]} Kf7 {[%emt 0:00:14]} 49. Rb8 {[%emt 0:02:32]} Bc6 {[%emt 0:00:05]} 50. Rc8 {[%emt 0:01:09][%cal Oc8c6]} (50. a8=R Bxb8 51. Rxb8 Kf6 $16) 50... Bb7 {[%emt 0:00:12]} 51. a8=Q {[%emt 0:01:13]} (51. a8=B $2 {is the wrong capture.} Bxc8 52. Baxe4 Be6 $19) 51... Bxa8 {[%emt 0:00:04]} 52. Rxa8 {[%emt 0:00:08][%mdl 4096] Endgame. KRB-KBN} Be5 {[%emt 0:03:21]} 53. Bxe4 {[%emt 0:00:36]} Kf6 {[%emt 0:00:10]} 54. Rg8 {[%emt 0:00:52]} Bf4 {[%emt 0:00:36]} 55. Kg2 {[%emt 0:00:16]} Ne6 {[%emt 0:00:09]} 56. Kf3 {[%emt 0:00:18] Threatens to win with Rg6+.} Bg5 {[%emt 0:00:19]} 57. Bd5 {[%emt 0:00:29]} Nf4 {[%emt 0:00:28]} 58. Rf8+ {[%emt 0:00:56]} Ke5 {[%emt 0:00:11]} 59. Re8+ {[%emt 0:00:14]} Kd6 {[%emt 0:00:04]} 60. Ke4 {[%emt 0:00:24]} Nh3 {[%emt 0:01:42]} 61. f3 {[%emt 0:00:30][%cal Bf2f3,Bf3f4][%mdl 32]} Nf4 {[%emt 0:00:14]} 62. Rc8 {[%emt 0:00:55]} Nh5 {[%emt 0:00:41]} 63. Rc6+ {[%emt 0:00:19]} Kd7 {[%emt 0:00:04]} 64. Rxc5 {[%emt 0:00:14]} Ng3+ {[%emt 0:00:06]} 65. Ke5 {[%emt 0:00:15] And now Be6+ would win.} h5 {[%emt 0:00:18][%cal Bh6h5,Bh5h4][%mdl 32]} 66. f4 {[%emt 0:00:19] White mates.} Bd8 {[%emt 0:00:47]} 67. Be6+ {[%emt 0:00:25]} Ke8 {[%emt 0:00:04]} 68. Rc8 {[%emt 0:00:55]} h4 {[%emt 0:00:05]} 69. c5 {[%emt 0:00:22] Weighted Error Value: White=0.26 (precise) /Black=0.45.  Loses game:     	White=2     	---        Missed win:     	---       	Black=2      Mistake:       	White=3     	Black=5      Inaccurate:     	White=2     	Black=3      OK:         	White=31    	Black=17     Best:        	White=7     	Black=13     Strong:       	White=2     	---} 1-0